fUSD/lending_fUSD_20250702
["ID","MTS","AMOUNT","RATE_DAILY","PERIOD"]
[369107825,1751482232288,-185.69107135,0.00024945,2]
[369107826,1751482232298,-156.04,0.00024945,2]
[369107827,1751482232308,-200.0,0.000251,7]
[369107828,1751482232318,-200.0,0.000261,7]
[369107829,1751482232535,-200.0,0.000271,7]
[369107830,1751482232545,-1000.0,0.00027282,2]
[369107831,1751482232554,-1000.0,0.00027286,2]
[369107832,1751482232564,-521.0,0.00027324,2]
[369107833,1751482232573,-250.0,0.000274,2]
[369107834,1751482232583,-1000.0,0.00027474,2]
[369107835,1751482232596,-200.0,0.00027489,7]
[369107836,1751482232607,-5000.0,0.0002751,2]
[369107837,1751482232616,-318.81,0.00027538,120]
[369107838,1751482232626,-170.533257,0.00027552,2]
[369107839,1751482232661,-2445.566743,0.00027552,2]
[369107840,1751482232672,-150.0,0.00027601,2]
[369107841,1751482232682,-1289.66,0.00027676,2]
[369107842,1751482232692,-250.0,0.00027707,2]
[369107843,1751482232701,-503.66,0.00027765,2]
[369107844,1751482232711,-2959.21,0.00027773,2]
[369107845,1751482232720,-150.99,0.00027773,2]
[369107846,1751482232730,-1554.12,0.00027773,2]
[369107847,1751482232740,-3695.04,0.0002786,2]
[369107848,1751482232749,-5303.26770317,0.0002786,2]
[369107850,1751482232760,-23900.0,0.00027861,2]
[369107851,1751482232770,-2876.27110651,0.000279,18]
[369107852,1751482232779,-168.0,0.00028063,2]
[369107853,1751482232788,-2876.27110634,0.00028141,18]
[369107854,1751482232797,-935.11,0.00028343,2]
[369107855,1751482232806,-925.42,0.00028343,2]
[369107856,1751482232815,-2876.27110634,0.00028383,18]
[369107857,1751482232825,-151.56,0.00028409,2]
[369107858,1751482232834,-191.28,0.00028448,2]
[369107859,1751482232844,-2857.83,0.00028551,2]
[369107860,1751482232853,-155.77,0.00028551,2]
[369107861,1751482232863,-3579.88,0.00028551,2]
[369107862,1751482232873,-2876.27110634,0.00028624,19]
[369107863,1751482232883,-1613.08,0.00028641,2]
[369107864,1751482232892,-559.81309758,0.00028655,2]
[369107865,1751482232901,-1562.20235,0.0002871,2]
[369107866,1751482232911,-500.0,0.00028813,2]
[369107867,1751482232920,-2876.27110634,0.00028866,19]
[369107868,1751482232929,-666.35729767,0.000289,2]
[369107869,1751482232939,-183.08622295,0.000289,2]
[369107870,1751482232948,-2927.0,0.00028915,2]
[369107871,1751482232958,-1090.65,0.00028987,2]
[369107872,1751482232967,-8733.00563113,0.00028987,2]
[369107873,1751482233101,-21169.23068637,0.00028987,2]
[369107874,1751482233110,-5231.15576337,0.0002899,2]
[369107875,1751482233149,-259.78287007,0.0002899,2]
[369107891,1751482238258,-6550.36562931,0.000289,2]
[369107892,1751482238268,-5654.46190452,0.0002899,2]
[369107893,1751482238279,-9077.47904078,0.0002899,2]
[369107903,1751482240472,-600.0,0.000274,2]
[369107904,1751482240482,-4579.31,0.0002899,2]
[369107905,1751482240613,-1387.04275218,0.0002899,2]
[369107933,1751482243294,-178.61,0.00028382,2]
[369107934,1751482243304,-12901.10665,0.0002899,2]
[369107935,1751482243402,-651.0,0.0002899,2]
[369107936,1751482243507,-673.57615397,0.0002899,2]
[369107962,1751482246760,-3460.50659902,0.0002899,2]
[369107963,1751482246772,-3791.60021836,0.0002899,2]
[369107964,1751482246820,-1642.1555955,0.0002899,2]
[369107967,1751482292372,9427.0,0.00020108,2]
[369107976,1751482894359,150.0,0.00020108,2]
[369107994,1751483264281,171.07,0.00013699,2]
[369108008,1751483432375,-168.57,0.00022089,2]
[369108009,1751483432386,-156.04,0.00025812,2]
[369108010,1751483432396,-546.39,0.000263,2]
[369108011,1751483432407,-1453.61,0.000263,2]
[369108012,1751483432417,-162.0,0.00027,7]
[369108013,1751483432426,-500.0,0.00027068,2]
[369108014,1751483432436,-527.0,0.00027294,2]
[369108015,1751483432445,-177.48142747,0.000273,2]
[369108016,1751483432454,-1353.52365602,0.000274,2]
[369108017,1751483432463,-1200.0,0.00027433,2]
[369108018,1751483432473,-171.34407593,0.00027434,2]
[369108019,1751483433185,-273.39592407,0.00027434,2]
[369108020,1751483433195,-1094.60407593,0.00027434,2]
[369108022,1751483433266,-586.1142527,0.00027434,2]
[369108023,1751483433280,-5641.13775098,0.00027434,2]
[369108024,1751483433293,-18754.51392039,0.00027434,2]
[369108025,1751483433303,-150.0,0.00027513,2]
[369108026,1751483433312,-14945.57678363,0.00027534,2]
[369108027,1751483433329,-7648.53321637,0.00027534,2]
[369108028,1751483433339,-173.03,0.00027581,2]
[369108029,1751483433349,-151.69,0.00027666,120]
[369108030,1751483433360,-162.0,0.00027671,14]
[369108031,1751483433369,-150.0,0.00027676,2]
[369108032,1751483433379,-5000.0,0.00027695,2]
[369108033,1751483433390,-151.56,0.00027787,2]
[369108034,1751483433400,-150.0,0.00027875,2]
[369108035,1751483433410,-2451.1930653,0.000279,18]
[369108036,1751483433420,-150.0,0.00027989,2]
[369108037,1751483433431,-150.0,0.00028003,2]
[369108038,1751483433441,-1057.89,0.00028019,2]
[369108039,1751483433451,-2367.36,0.00028038,2]
[369108040,1751483433461,-1651.15,0.00028115,2]
[369108041,1751483433471,-1373.54,0.00028115,2]
[369108042,1751483433482,-2451.19306524,0.00028141,18]
[369108043,1751483433492,-263.0,0.00028171,2]
[369108044,1751483433502,-150.0,0.00028235,2]
[369108045,1751483433512,-150.0,0.00028235,2]
[369108046,1751483433521,-150.0,0.00028238,2]
[369108047,1751483433531,-150.0,0.00028264,2]
[369108048,1751483433541,-15135.22,0.00028302,2]
[369108049,1751483433551,-150.0,0.00028372,2]
[369108050,1751483433560,-2451.19306524,0.00028383,18]
[369108051,1751483433569,-500.0,0.00028389,2]
[369108052,1751483433580,-776.0,0.0002852,7]
[369108053,1751483433589,-665.62117909,0.00028551,2]
[369108054,1751483433656,-110.37882091,0.00028551,2]
[369108055,1751483433666,-200.0,0.00028551,2]
[369108056,1751483433677,-200.0,0.00028551,2]
[369108057,1751483433687,-167.9,0.00028551,3]
[369108058,1751483433696,-20.70178783,0.00028551,7]
[369108062,1751483438507,-179.29821217,0.00028551,7]
[369108063,1751483438516,-150.0,0.00028551,2]
[369108064,1751483438526,-756.44,0.00028551,2]
[369108065,1751483438535,-151.56,0.00028617,2]
[369108066,1751483438545,-2451.19306524,0.00028624,19]
[369108067,1751483438554,-300.0,0.00028634,2]
[369108068,1751483438563,-151.0,0.00028634,2]
[369108069,1751483438573,-151.0,0.00028634,2]
[369108070,1751483438583,-207.4,0.00028634,2]
[369108071,1751483438592,-151.20431568,0.00028634,2]
[369108072,1751483438602,-500.0,0.00028634,2]
[369108073,1751483438611,-500.0,0.00028634,2]
[369108074,1751483438620,-500.0,0.00028634,2]
[369108075,1751483438630,-500.0,0.00028634,2]
[369108076,1751483438640,-500.0,0.00028634,2]
[369108078,1751483438650,-300.0,0.00028634,2]
[369108080,1751483438658,-172.91873145,0.00028634,2]
[369108082,1751483438667,-500.0,0.00028634,2]
[369108084,1751483438676,-500.0,0.00028634,2]
[369108085,1751483438685,-500.0,0.00028634,2]
[369108087,1751483438695,-500.0,0.00028634,2]
[369108089,1751483438704,-500.0,0.00028634,2]
[369108091,1751483438713,-1000.0,0.00028634,2]
[369108094,1751483438730,-6912.642,0.00028634,2]
[369108097,1751483438749,-300.0,0.00028634,2]
[369108100,1751483438762,-1000.0,0.00028634,2]
[369108103,1751483438779,-1066.23330192,0.00028634,2]
[369108106,1751483438797,-7168.409754,0.00028689,2]
[369108108,1751483438811,-7433.6409149,0.00028744,2]
[369108111,1751483438824,-162.0,0.00028767,14]
[369108114,1751483438842,-7708.68562875,0.00028799,2]
[369108116,1751483438859,-1000.0,0.00028816,2]
[369108119,1751483438875,-7993.90699701,0.00028854,2]
[369108122,1751483438891,-161.457606,0.00028855,2]
[369108125,1751483438910,-6416.3320686,0.00028855,2]
[369108127,1751483438925,-855.87562383,0.00028865,2]
[369108130,1751483438941,-2451.19306524,0.00028866,19]
[369108133,1751483438958,-179.07975962,0.00028887,2]
[369108135,1751483438973,-5474.51810569,0.00028909,2]
[369108137,1751483438985,-175.0,0.00028927,120]
[369108140,1751483439000,-250.0,0.0002893,2]
[369108143,1751483439017,-250.0,0.0002893,2]
[369108145,1751483439029,-1758.0,0.00028936,120]
[369108147,1751483439044,-175.0,0.00028937,120]
[369108150,1751483439060,-152.48,0.00028945,2]
[369108152,1751483439072,-309.88,0.00028945,2]
[369108156,1751483439093,-309.88,0.00028945,2]
[369108158,1751483439108,-309.88,0.00028945,2]
[369108161,1751483439121,-309.88,0.00028945,2]
[369108163,1751483439135,-120.39265586,0.00028945,2]
[369108231,1751483440398,-189.48734414,0.00028945,2]
[369108232,1751483440425,-418.58272511,0.00028945,2]
[369108233,1751483440768,-126.73727489,0.00028945,2]
[369108234,1751483440787,-545.32,0.00028945,2]
[369108235,1751483440803,-216.46667754,0.00028945,2]
[369108236,1751483440819,-152.48,0.00028945,2]
[369108237,1751483440834,-152.48,0.00028945,2]
[369108238,1751483440849,-152.48,0.00028945,2]
[369108239,1751483440865,-1758.0,0.00028946,120]
[369108240,1751483440881,-175.0,0.00028947,120]
[369108241,1751483440896,-500.0,0.00028954,2]
[369108242,1751483440911,-410.13183372,0.00028954,2]
[369108243,1751483440927,-216.64804314,0.00028954,2]
[369108245,1751483440943,-500.0,0.00028954,2]
[369108248,1751483440962,-3958.27756686,0.00028954,11]
[369108250,1751483440977,-218779.00515808,0.00028955,11]
[369108252,1751483441124,-1.92445,0.00028955,11]
[369108264,1751483444511,-238013.06483921,0.00028955,11]
[369108265,1751483444534,-669.90824524,0.00028955,11]
[369108266,1751483444546,-2587.83,0.00028955,11]
[369108267,1751483444585,-2127.5000002,0.00028955,11]
[369108268,1751483444609,-1502.7047,0.00028955,11]
[369108270,1751483446534,-705.52841105,0.00028955,11]
[369108271,1751483446545,-55023.74676935,0.00028955,11]
[369108272,1751483446589,-3110.92028415,0.00028955,11]
[369108273,1751483446695,-20265.42773493,0.00028955,11]
[369108274,1751483446706,-1060.84288534,0.00028955,11]
[369108275,1751483446749,-2475.5,0.00028955,11]
[369108276,1751483446760,-834.604,0.00028955,11]
[369108277,1751483446771,-2158.6,0.00028955,11]
[369108278,1751483446783,-264.4168396,0.00028955,11]
[369108280,1751483561438,550.0,0.00027397,120]
[369108283,1751483860045,406.2,0.00027397,120]
[369108287,1751484245494,386.33,0.00026707,120]
[369108288,1751484308029,2000.0,0.00014,2]
[369108289,1751484308055,93.56,0.00014,2]
[369108290,1751484308078,10000.0,0.00014,2]
[369108291,1751484308102,10000.0,0.00014,2]
[369108292,1751484308128,10000.0,0.00014,2]
[369108293,1751484308154,10000.0,0.00014,2]
[369108294,1751484308179,10000.0,0.00014,2]
[369108295,1751484308201,10000.0,0.00014,2]
[369108296,1751484308230,10000.0,0.00014,2]
[369108297,1751484308255,10000.0,0.00014,2]
[369108298,1751484308281,10000.0,0.00014,2]
[369108299,1751484308308,10000.0,0.00014,2]
[369108300,1751484308333,10000.0,0.00014,2]
[369108301,1751484308356,10000.0,0.00014,2]
[369108302,1751484308379,10000.0,0.00014,2]
[369108303,1751484308412,10000.0,0.00014,2]
[369108304,1751484308434,10000.0,0.00014,2]
[369108305,1751484308456,10000.0,0.00014,2]
[369108306,1751484308482,10000.0,0.00014,2]
[369108307,1751484308503,10000.0,0.00014,2]
[369108308,1751484308534,40000.0,0.00014,2]
[369108309,1751484308563,77472.45962078,0.00014,2]
[369108310,1751484308591,25360.32625764,0.00014,2]
[369108317,1751484429574,157.11,0.00013699,2]
[369108377,1751484631603,-168.57,0.00020811,2]
[369108378,1751484631613,-300.0,0.00021855,2]
[369108379,1751484631623,-623.43,0.000227,5]
[369108380,1751484631634,-356.47879789,0.000227,5]
[369108381,1751484631657,-272.09120211,0.000227,5]
[369108382,1751484631667,-300.0,0.00022892,2]
[369108383,1751484631677,-7153.672808,0.00024073,2]
[369108384,1751484631686,-199.08609128,0.00024194,2]
[369108385,1751484631695,-1200.0,0.00024293,2]
[369108386,1751484631705,-503.0,0.00024294,2]
[369108387,1751484631715,-502.0,0.00024294,2]
[369108388,1751484631725,-536.0,0.00024294,2]
[369108389,1751484631734,-509.0,0.00024294,2]
[369108390,1751484631743,-1750.14989861,0.000249,12]
[369108391,1751484631811,-6512.7688009,0.000249,12]
[369108392,1751484631820,-151.0,0.00024985,2]
[369108393,1751484631829,-151.0,0.00024985,2]
[369108394,1751484631839,-151.0,0.00024985,2]
[369108395,1751484631848,-151.0,0.00024985,2]
[369108396,1751484631858,-151.0,0.00024985,2]
[369108397,1751484631867,-151.0,0.00024985,2]
[369108398,1751484631876,-151.0,0.00024985,2]
[369108399,1751484631886,-151.0,0.00024985,2]
[369108400,1751484631895,-151.0,0.00024985,2]
[369108401,1751484631904,-151.0,0.00024985,2]
[369108402,1751484631914,-151.0,0.00024985,2]
[369108403,1751484631924,-151.0,0.00024985,2]
[369108404,1751484631933,-6496.81348724,0.00025,2]
[369108405,1751484631942,-163.0,0.00025,7]
[369108406,1751484631951,-151.0,0.00025,2]
[369108407,1751484631960,-156.04,0.0002503,2]
[369108408,1751484631969,-8262.91869926,0.00025107,12]
[369108409,1751484631979,-231.41,0.00025115,2]
[369108410,1751484631988,-365.97,0.00025218,2]
[369108411,1751484631998,-591.0,0.00025291,2]
[369108412,1751484632007,-1000.0,0.00025313,2]
[369108413,1751484632016,-8262.91869926,0.00025314,12]
[369108414,1751484632027,-199.08609127,0.00025357,2]
[369108416,1751484632038,-8262.91869926,0.00025521,13]
[369108418,1751484632047,-156.587,0.00025548,2]
[369108420,1751484632057,-1000.0,0.00025574,2]
[369108421,1751484632067,-8262.91869926,0.00025728,13]
[369108423,1751484632078,-23900.0,0.00025838,2]
[369108424,1751484632087,-163.0,0.0002589,7]
[369108425,1751484632097,-8262.91869926,0.00025934,14]
[369108426,1751484632107,-162.380719,0.00026096,2]
[369108427,1751484632117,-8262.91869926,0.00026141,14]
[369108428,1751484632127,-151.54,0.00026212,2]
[369108429,1751484632136,-8262.91869926,0.00026348,14]
[369108430,1751484632146,-976.44250342,0.00026407,2]
[369108431,1751484632155,-1680.0,0.00026457,2]
[369108432,1751484632165,-199.08609127,0.00026519,2]
[369108433,1751484632175,-8262.91869926,0.00026555,15]
[369108434,1751484632184,-1608.75,0.00026619,2]
[369108435,1751484632194,-168.3888056,0.00026644,2]
[369108436,1751484632204,-8262.91869926,0.00026762,15]
[369108437,1751484632213,-1739.96221657,0.00026762,2]
[369108438,1751484632222,-223.42,0.00026813,2]
[369108439,1751484632232,-503.0,0.00026845,6]
[369108440,1751484632242,-156.98,0.00026856,2]
[369108441,1751484632252,-156.98,0.00026889,2]
[369108442,1751484632262,-184.47,0.00026896,2]
[369108443,1751484632272,-60999.96,0.00026906,2]
[369108444,1751484632285,-1640.65,0.00026906,2]
[369108445,1751484632294,-150.0,0.00026906,2]
[369108446,1751484632304,-156.98,0.00026923,2]
[369108447,1751484632314,-156.98,0.00026956,2]
[369108448,1751484632324,-8262.91869926,0.00026969,16]
[369108449,1751484632337,-156.98,0.0002699,2]
[369108450,1751484632347,-168.07,0.0002712,2]
[369108451,1751484632357,-8262.91869926,0.00027176,16]
[369108452,1751484632367,-164.0,0.00027185,7]
[369108453,1751484632376,-293.71096191,0.00027192,2]
[369108454,1751484632386,-8262.91869926,0.00027383,17]
[369108455,1751484632396,-500.0,0.00027392,2]
[369108456,1751484632407,-150.0,0.00027397,2]
[369108457,1751484632416,-1130.51,0.00027568,2]
[369108458,1751484632426,-8262.91869926,0.0002759,17]
[369108459,1751484632436,-1893.88,0.00027645,2]
[369108460,1751484632445,-8262.91869926,0.00027797,17]
[369108461,1751484632454,-5000.0,0.00027809,2]
[369108462,1751484632464,-200.0,0.00027809,7]
[369108463,1751484632473,-151.54,0.0002785,2]
[369108464,1751484632482,-150.87019241,0.0002789,2]
[369108465,1751484632491,-9495.91196487,0.0002789,2]
[369108466,1751484632501,-170.08990261,0.00027898,2]
[369108467,1751484632510,-1000.0,0.000279,2]
[369108468,1751484632520,-1083.0,0.000279,2]
[369108469,1751484632532,-167.27690369,0.00027921,2]
[369108470,1751484632541,-150.0,0.00027948,2]
[369108471,1751484632550,-184.47,0.0002796,2]
[369108472,1751484632560,-3602.56,0.0002797,2]
[369108473,1751484632570,-200.0,0.00027971,2]
[369108474,1751484632580,-184.47,0.0002798,2]
[369108475,1751484632590,-184.47,0.0002798,2]
[369108476,1751484632599,-794294.93351374,0.00027982,5]
[369108477,1751484633678,-5525.36273134,0.00027982,5]
[369108478,1751484633690,-1782.7539847,0.00027982,5]
[369108479,1751484633702,-2960.2460153,0.00027982,5]
[369108480,1751484633714,-705.62151711,0.00027982,5]
[369108481,1751484633738,-54113.68051717,0.00027982,5]
[369108487,1751484637786,-246.81014382,0.00027981,2]
[369108488,1751484637796,-235.18985618,0.00027981,2]
[369108489,1751484637809,-264.81014382,0.00027981,2]
[369108490,1751484637819,-93.52470782,0.00027981,2]
[369108491,1751484637832,-406.47529218,0.00027981,2]
[369108492,1751484637843,-222.37672662,0.00027981,2]
[369108493,1751484637854,-585.30829132,0.00027981,2]
[369108494,1751484637864,-500.0,0.00027981,2]
[369108495,1751484637874,-500.0,0.00027981,2]
[369108496,1751484637884,-500.0,0.00027981,2]
[369108498,1751484637893,-500.0,0.00027981,2]
[369108500,1751484637903,-500.0,0.00027981,2]
[369108502,1751484637913,-500.0,0.00027981,2]
[369108504,1751484637922,-500.0,0.00027981,2]
[369108505,1751484637931,-500.0,0.00027981,2]
[369108506,1751484637942,-500.0,0.00027981,2]
[369108507,1751484637951,-500.0,0.00027981,2]
[369108508,1751484637961,-500.0,0.00027981,2]
[369108509,1751484637970,-500.0,0.00027981,2]
[369108510,1751484637979,-500.0,0.00027981,2]
[369108511,1751484637988,-500.0,0.00027981,2]
[369108512,1751484637997,-500.0,0.00027981,2]
[369108513,1751484638007,-524.33920188,0.00027981,2]
[369108514,1751484638017,-500.0,0.00027981,2]
[369108515,1751484638027,-500.0,0.00027981,2]
[369108516,1751484638036,-500.0,0.00027981,2]
[369108517,1751484638046,-310.07092149,0.00027981,2]
[369108519,1751484638055,-1126.78766651,0.00027982,5]
[369108520,1751484638067,-1433.49649956,0.00027982,5]
[369108521,1751484638111,-149423.83902522,0.00027982,5]
[369108522,1751484638123,-2415.25992781,0.00027982,5]
[369108523,1751484638133,-40750.444,0.00027982,5]
[369108524,1751484638144,-8355.461751,0.00027982,5]
[369108525,1751484638156,-36000.42631544,0.00027982,5]
[369108526,1751484638170,-9852.464631,0.00027982,5]
[369108529,1751484638190,-7097646.50230431,0.00027982,5]
[369108532,1751484638201,-5670.29746363,0.00027982,5]
[369108534,1751484638213,-530.7,0.00027982,5]
[369108536,1751484638224,-3272.05255464,0.00027982,5]
[369108540,1751484638248,-1144.44820268,0.00027982,5]
[369108542,1751484638259,-290.1111096,0.00027982,5]
[369108682,1751484639627,-500.0,0.00027981,2]
[369108684,1751484639636,-48.7479998,0.00027981,2]
[369108686,1751484639648,-451.2520002,0.00027981,2]
[369108688,1751484639657,-500.0,0.00027981,2]
[369108690,1751484639667,-500.0,0.00027981,2]
[369108692,1751484639676,-500.0,0.00027981,2]
[369108694,1751484639685,-258.68233582,0.00027981,2]
[369108696,1751484639695,-500.0,0.00027981,2]
[369108698,1751484639704,-535.12410068,0.00027981,2]
[369108700,1751484639715,-500.0,0.00027981,2]
[369108702,1751484639724,-500.0,0.00027981,2]
[369108704,1751484639734,-500.0,0.00027981,2]
[369108706,1751484639743,-500.0,0.00027981,2]
[369108708,1751484639754,-500.0,0.00027981,2]
[369108710,1751484639763,-457.74018562,0.00027981,2]
[369108712,1751484639774,-136.99299009,0.00027981,2]
[369108728,1751484639919,-363.00700991,0.00027981,2]
[369108730,1751484639929,-10.85502066,0.00027981,2]
[369108755,1751484640170,-6.23700669,0.00027981,2]
[369108857,1751484642753,-382.45317261,0.00027981,2]
[369108858,1751484642763,-500.0,0.00027981,2]
[369108859,1751484642772,-407.95706744,0.00027981,2]
[369108860,1751484642782,-486.31833298,0.00027981,2]
[369108861,1751484642791,-198.85724014,0.00027982,5]
[369108872,1751484645442,-439.35693764,0.00027981,2]
[369108873,1751484645452,-162.85303872,0.00027982,5]
[369108874,1751484645550,-6860.1498,0.00027982,5]
[369108875,1751484645778,-137842.47816465,0.00027982,5]
[369108876,1751484645906,-190.7035884,0.00027982,5]
[369108922,1751484722755,300.0,0.00026974,120]
[369108923,1751484723250,300.0,0.00027018,120]
[369108941,1751484887953,151.0,0.0002739,120]
[369108942,1751484887994,490.0,0.0002739,120]
[369108953,1751485119124,322.0,0.0002739,120]
[369108954,1751485121687,1347.0,0.0002739,120]
[369108955,1751485134110,207.0,0.0002739,120]
[369108956,1751485179803,217.01417655,0.0002739,120]
[369108960,1751485416342,153.14,0.00025667,120]
[369108961,1751485416961,150.14,0.00013699,2]
[369108962,1751485478885,365.99360647,0.0002739,120]
[369108966,1751485606148,233.83071042,0.0002739,120]
[369108967,1751485608987,182.0,0.0002739,120]
[369108978,1751485769558,880.0,0.0002739,120]
[369108979,1751485787580,840.0,0.0002739,120]
[369108984,1751485831705,-151.0,0.00022099,2]
[369108985,1751485831715,-151.0,0.00022099,2]
[369108986,1751485831725,-1144.7187223,0.00022099,2]
[369108987,1751485831811,-58.2812777,0.00022099,2]
[369108988,1751485831822,-807.32048613,0.00022099,2]
[369108989,1751485831831,-2041.24394468,0.00022718,2]
[369108990,1751485831840,-169.0,0.00022818,2]
[369108991,1751485831850,-204.69466643,0.00022818,2]
[369108992,1751485831858,-600.0,0.00022917,2]
[369108993,1751485831867,-1200.0,0.00022917,2]
[369108994,1751485831877,-1200.0,0.00022918,2]
[369108995,1751485831886,-300.0,0.00022918,2]
[369108996,1751485831895,-300.0,0.00022918,2]
[369108997,1751485831905,-174.0249723,0.00022919,2]
[369108998,1751485831916,-151.0,0.00022919,2]
[369108999,1751485831926,-1203.0,0.00022919,2]
[369109000,1751485831935,-1203.0,0.00022919,2]
[369109001,1751485831945,-1203.0,0.00022919,2]
[369109002,1751485831954,-1203.0,0.00022919,2]
[369109003,1751485831964,-1203.0,0.00022919,2]
[369109004,1751485831976,-592.0,0.000235,5]
[369109005,1751485831986,-169.0,0.00023695,2]
[369109006,1751485831995,-13208.98,0.00024069,2]
[369109007,1751485832005,-156.04,0.00024166,2]
[369109008,1751485832014,-720.0,0.00024305,2]
[369109009,1751485832024,-4936.69,0.0002437,2]
[369109011,1751485832033,-8926.61,0.000249,2]
[369109012,1751485832042,-200.0,0.000249,2]
[369109014,1751485832052,-200.0,0.000249,7]
[369109016,1751485832061,-24579.38962164,0.00024906,2]
[369109018,1751485832071,-15984.25,0.00024907,2]
[369109020,1751485832080,-250.0,0.00024974,2]
[369109022,1751485832089,-1680.0,0.00024995,2]
[369109023,1751485832100,-5588.02,0.0002504,2]
[369109024,1751485832109,-1000.0,0.00025061,2]
[369109025,1751485832118,-150.0,0.00025138,2]
[369109026,1751485832128,-23900.0,0.00025162,2]
[369109027,1751485832137,-161.380719,0.00025299,2]
[369109028,1751485832147,-151.0,0.00025299,2]
[369109029,1751485832156,-7577.20911464,0.00025314,2]
[369109030,1751485832168,-9554.22088536,0.00025314,2]
[369109031,1751485832178,-16449.87,0.00025314,2]
[369109032,1751485832187,-500.0,0.00025328,2]
[369109033,1751485832196,-530.0,0.00025395,2]
[369109034,1751485832205,-23616.9803111,0.00025597,2]
[369109035,1751485832214,-167.38,0.00025623,2]
[369109036,1751485832224,-1228.31676513,0.00025626,2]
[369109037,1751485832247,-3771.68323487,0.00025626,2]
[369109038,1751485832256,-3141.45,0.00025636,2]
[369109039,1751485832266,-223.6,0.00025637,2]
[369109040,1751485832276,-4208.78,0.00025667,2]
[369109041,1751485832285,-5121.43,0.00025679,2]
[369109042,1751485832294,-785.04,0.00025692,2]
[369109043,1751485832304,-274.78,0.00025697,2]
[369109044,1751485832313,-500.0,0.00025717,3]
[369109045,1751485832323,-2400.35,0.00025717,2]
[369109046,1751485832332,-169.88,0.00025722,2]
[369109047,1751485832341,-287.27,0.00025742,2]
[369109048,1751485832351,-23616.98031101,0.00025876,2]
[369109049,1751485832360,-1852.42,0.00025892,2]
[369109050,1751485832370,-1000.0,0.0002593,2]
[369109051,1751485832379,-2759.9,0.00026026,2]
[369109052,1751485832389,-150.14,0.00026027,2]
[369109053,1751485832398,-23616.98031101,0.00026154,2]
[369109054,1751485832408,-1092.37,0.00026364,2]
[369109055,1751485832418,-500.0,0.0002638,2]
[369109056,1751485832427,-870.89,0.00026412,2]
[369109057,1751485832437,-23616.98031101,0.00026433,2]
[369109058,1751485832447,-551.25,0.000266,2]
[369109059,1751485832456,-152.54421231,0.00026611,2]
[369109060,1751485832466,-23616.98031101,0.00026711,2]
[369109061,1751485832476,-904.19,0.00026773,2]
[369109062,1751485832486,-500.0,0.00026831,2]
[369109063,1751485832496,-1731.0,0.00026831,2]
[369109064,1751485832505,-150.0,0.00026831,2]
[369109065,1751485832515,-150.0,0.00026831,2]
[369109066,1751485832524,-500.0,0.00026831,2]
[369109067,1751485832533,-500.0,0.00026831,2]
[369109068,1751485832543,-500.0,0.00026831,2]
[369109069,1751485832553,-500.0,0.00026831,2]
[369109070,1751485832563,-500.0,0.00026831,2]
[369109071,1751485832572,-150.0,0.00026831,2]
[369109072,1751485832582,-150.0,0.00026831,2]
[369109073,1751485832592,-500.0,0.00026831,2]
[369109074,1751485832603,-500.0,0.00026831,2]
[369109075,1751485832612,-680.0,0.00026831,2]
[369109076,1751485832622,-250.0,0.00026831,2]
[369109077,1751485832632,-150.0,0.00026836,2]
[369109078,1751485832642,-150.0,0.00026836,2]
[369109079,1751485832651,-199.3476315,0.00026836,2]